bitfinex-derivatives/quotes_BTCF0:USTF0_20250728
["timestamp","ask_amount","ask_price","bid_price","bid_amount"]
[1753744268519,0.1694749,118000.0,117990.0,0.5741105]
[1753744268732,0.3319449,118000.0,117990.0,0.93061171]
[1753744269830,0.3319449,118000.0,117990.0,0.24733171]
[1753744270026,0.3319449,118000.0,117990.0,0.93077171]
[1753744270330,0.3319449,118000.0,117990.0,0.93177171]
[1753744270629,0.3319449,118000.0,117990.0,0.93165171]
[1753744270831,0.3319449,118000.0,117990.0,0.18752287]
[1753744271325,0.34033044,118000.0,117990.0,0.87068287]
[1753744275332,0.34033044,118000.0,117990.0,0.01803357]
[1753744275632,0.62474433,118000.0,117990.0,0.6842]
[1753744275831,0.62474433,118000.0,117990.0,0.001]
[1753744275832,0.79424033,118000.0,117990.0,0.001]
[1753744276035,0.79424033,118000.0,117990.0,0.6842]
[1753744276328,0.79424033,118000.0,117990.0,0.68136233]
[1753744277731,0.79424033,118000.0,117990.0,0.62398724]
[1753744278826,0.79624033,118000.0,117990.0,0.62398724]
[1753744280632,0.34233044,118000.0,117990.0,0.62398724]
[1753744280836,0.36058745,118000.0,117990.0,0.62398724]
[1753744281023,0.64500134,118000.0,117990.0,0.62398724]
[1753744282634,0.64500134,118000.0,117990.0,0.79347644]
[1753744283039,0.36058745,118000.0,117990.0,1.07789033]
[1753744283239,0.29482745,118000.0,117990.0,1.07789033]
[1753744283430,0.2029649,118000.0,117990.0,1.07789033]
[1753744284535,0.22120422,118000.0,117990.0,1.07789033]
[1753744284733,0.2029649,118000.0,117990.0,1.07789033]
[1753744284930,0.2029649,118000.0,117990.0,0.79347644]
[1753744285234,0.3524339,118000.0,117990.0,1.07789033]
[1753744285536,0.3341949,118000.0,117990.0,1.07789033]
[1753744285836,0.35143354,118000.0,117990.0,1.07789033]
[1753744286032,0.35143354,118000.0,117990.0,1.07889033]
[1753744286233,0.35143354,118000.0,117990.0,1.07989033]
[1753744286633,0.35143354,118000.0,117990.0,1.07889033]
[1753744287036,0.32030354,118000.0,117990.0,1.07889033]
[1753744287233,0.2009649,118000.0,117990.0,1.07889033]
[1753744287537,0.03149,118000.0,117990.0,1.07889033]
[1753744287735,0.03149,118000.0,117990.0,1.07789033]
[1753744288341,0.2009657,118000.0,117990.0,1.07789033]
[1753744288636,0.2009657,118000.0,117990.0,1.07889033]
[1753744289138,0.2009657,118000.0,117990.0,1.07989033]
[1753744289336,0.03149,118000.0,117990.0,1.07989033]
[1753744289633,0.1995413,118010.0,118000.0,0.1694757]
[1753744289937,0.1995413,118010.0,118000.0,0.45388959]
[1753744290240,0.1694613,118010.0,118000.0,0.45388959]
[1753744290538,0.1995413,118010.0,118000.0,0.45388959]
[1753744292937,0.1694613,118010.0,118000.0,0.58098969]
[1753744293137,0.1694613,118010.0,118000.0,0.90877138]
[1753744293334,0.254187,118020.0,118010.0,0.1694613]
[1753744293532,0.31011077,118020.0,118010.0,1.13707519]
[1753744293938,0.43517077,118020.0,118010.0,1.13707519]
[1753744295434,0.30294077,118020.0,118010.0,1.13707519]
[1753744295840,0.21821277,118020.0,118010.0,1.13707519]
[1753744296837,0.21821277,118020.0,118010.0,1.13807519]
[1753744297642,0.21821277,118020.0,118010.0,1.13907519]
[1753744299646,0.28206277,118020.0,118010.0,1.13907519]
[1753744299843,0.35044277,118020.0,118010.0,1.13907519]
[1753744302543,0.21821277,118020.0,118010.0,1.13907519]
[1753744304049,0.29408277,118020.0,118010.0,1.13907519]
[1753744304343,0.34763277,118020.0,118010.0,1.13907519]
[1753744307746,0.31826277,118020.0,118010.0,1.13907519]
[1753744307948,0.263959,118020.0,118010.0,1.13907519]
[1753744308346,0.199539,118020.0,118010.0,1.13907519]
[1753744310454,0.235169,118020.0,118010.0,1.13907519]
[1753744311555,0.254919,118020.0,118010.0,1.13907519]
[1753744312659,0.276159,118020.0,118010.0,1.13907519]
[1753744312862,0.305529,118020.0,118010.0,1.13907519]
[1753744313056,0.329709,118020.0,118010.0,1.13907519]
[1753744321263,0.240529,118020.0,118010.0,1.13907519]
[1753744321457,0.169459,118020.0,118010.0,1.13907519]
[1753744321662,0.39266214,118030.0,118020.0,0.169447]
[1753744321968,0.47651308,118030.0,118020.0,0.45386089]
[1753744322463,0.51214308,118030.0,118020.0,0.45386089]
[1753744322668,0.28426088,118030.0,118020.0,0.47117323]
[1753744322966,0.11481588,118030.0,118020.0,0.47117323]
[1753744323566,0.28424848,118030.0,118020.0,0.47117323]
[1753744324474,0.28424848,118030.0,118020.0,0.47217323]
[1753744326571,0.28424848,118030.0,118020.0,0.47317323]
[1753744326972,0.26556754,118030.0,118020.0,0.47317323]
[1753744327876,0.30119754,118030.0,118020.0,0.47317323]
[1753744328075,0.39573754,118030.0,118020.0,0.47317323]
[1753744336385,0.41442521,118030.0,118020.0,0.47317323]
[1753744340887,0.41442521,118030.0,118020.0,0.61518682]
[1753744342186,0.39573754,118030.0,118020.0,0.61518682]
[1753744343595,0.62764171,118030.0,118020.0,0.01931234]
[1753744343790,0.84085545,118030.0,118020.0,0.18875924]
[1753744344089,0.62764171,118030.0,118020.0,0.87143924]
[1753744344795,0.69883453,118030.0,118020.0,0.87143924]
[1753744345590,0.69883453,118030.0,118020.0,0.87043924]
[1753744346288,0.69883453,118030.0,118020.0,0.70099234]
[1753744346489,0.69883453,118030.0,118020.0,0.69999234]
[1753744346689,0.69883453,118030.0,118020.0,0.86943924]
[1753744346888,0.69883453,118030.0,118020.0,0.69999234]
[1753744347789,0.69883453,118030.0,118020.0,0.69995234]
[1753744348891,0.69883453,118030.0,118020.0,0.86939924]
[1753744349090,0.69983453,118030.0,118020.0,0.86939924]
[1753744349893,0.41542797,118030.0,118020.0,0.86939924]
[1753744351993,0.41442797,118030.0,118020.0,0.86939924]
[1753744352795,0.41442797,118030.0,118020.0,0.69995234]
[1753744353095,0.41442797,118030.0,118020.0,0.86939924]
[1753744353497,0.41442797,118030.0,118020.0,0.69995234]
[1753744354197,0.41442797,118030.0,118020.0,0.86939924]
[1753744355298,0.69883453,118030.0,118020.0,0.86939924]
[1753744356197,0.41542797,118030.0,118020.0,0.86939924]
[1753744356597,0.41542797,118030.0,118020.0,1.1538058]
[1753744357101,0.41542797,118030.0,118020.0,0.4711658]
[1753744357399,0.41542797,118030.0,118020.0,0.86935924]
[1753744358301,0.41442797,118030.0,118020.0,0.18675924]
[1753744358503,0.41442797,118030.0,118020.0,0.86931924]
[1753744361400,0.41442797,118030.0,118020.0,0.4711658]
[1753744361605,0.41442797,118030.0,118020.0,1.1536858]
[1753744361998,0.41442797,118030.0,118020.0,0.4711658]
[1753744362198,0.41442797,118030.0,118020.0,1.1536858]
[1753744362703,0.25447797,118030.0,118020.0,1.1536858]
[1753744362902,0.28349797,118030.0,118020.0,0.4711658]
[1753744363108,0.28349797,118030.0,118020.0,1.1536858]
[1753744363400,0.32334797,118030.0,118020.0,1.1556858]
[1753744363701,0.40809797,118030.0,118020.0,1.1556858]
[1753744364698,0.40809797,118030.0,118020.0,0.4731658]
[1753744364902,0.40809797,118030.0,118020.0,1.1556858]
[1753744365504,0.40809797,118030.0,118020.0,0.4731658]
[1753744365906,0.40809797,118030.0,118020.0,1.1556458]
[1753744367303,0.40809797,118030.0,118020.0,1.1546458]
[1753744367510,0.40809797,118030.0,118020.0,1.1556458]
[1753744368010,0.40809797,118030.0,118020.0,0.87123924]
[1753744368207,0.40809797,118030.0,118020.0,0.9861989]
[1753744368711,0.40809797,118030.0,118020.0,1.155645]
[1753744370411,0.40809797,118030.0,118020.0,0.473165]
[1753744370613,0.40809797,118030.0,118020.0,1.155605]
[1753744375515,0.40809797,118030.0,118020.0,1.155565]
[1753744376115,0.40809797,118030.0,118020.0,0.473165]
[1753744376316,0.40809797,118030.0,118020.0,1.155565]
[1753744376617,0.40809797,118030.0,118020.0,0.473165]
[1753744376818,0.40809797,118030.0,118020.0,1.155565]
[1753744377519,0.40809797,118030.0,118020.0,0.473165]
[1753744377714,0.40809797,118030.0,118020.0,1.155565]
[1753744378818,0.11599537,118030.0,118020.0,1.155565]
[1753744379022,0.25447797,118030.0,118020.0,1.155565]
[1753744379221,0.28542797,118030.0,118020.0,1.155565]
[1753744379620,0.34735797,118030.0,118020.0,0.87115844]
[1753744379827,0.40857797,118030.0,118020.0,0.87115844]
[1753744380026,0.40857797,118030.0,118020.0,0.87115934]
[1753744380224,0.69298453,118030.0,118020.0,0.87115934]
[1753744380627,0.69298453,118030.0,118020.0,0.01931234]
[1753744380828,0.69298453,118030.0,118020.0,0.70167234]
[1753744381028,0.69298453,118030.0,118020.0,0.18875924]
[1753744381231,0.69298453,118030.0,118020.0,0.87111924]
[1753744382135,0.69298453,118030.0,118020.0,0.87011924]
[1753744382333,0.40857797,118030.0,118020.0,0.87011924]
[1753744383032,0.69298453,118030.0,118020.0,0.01831234]
[1753744383332,0.1694613,118010.0,118000.0,1.3410627]
[1753744383541,0.60796786,118010.0,118000.0,1.1716]
[1753744383735,0.62660306,118010.0,118000.0,1.85588]
[1753744384043,0.62660306,118010.0,118000.0,0.68428]
[1753744385636,0.60796786,118010.0,118000.0,0.68428]
[1753744386328,0.21135,117990.0,117980.0,0.31383973]
[1753744386530,0.60799656,117990.0,117980.0,0.68504]
[1753744386731,0.60799656,117990.0,117980.0,0.8545444]
[1753744387037,0.32359,117990.0,117980.0,0.68504]
[1753744387430,0.32359,117990.0,117980.0,0.8545444]
[1753744388034,0.32359,117990.0,117980.0,0.8565444]
[1753744389036,0.32359,117990.0,117980.0,0.8585444]
[1753744391338,0.33210908,117990.0,117980.0,0.8585444]
[1753744396243,0.33210908,117990.0,117980.0,1.14295096]
[1753744400344,0.33210908,117990.0,117980.0,0.8585444]
[1753744401446,0.32359,117990.0,117980.0,0.8585444]
[1753744401642,0.03095,117990.0,117980.0,1.14295096]
[1753744401847,0.2004403,117990.0,117980.0,1.14295096]
[1753744404450,0.2827779,118000.0,117990.0,0.1694903]
[1753744404642,0.2827779,118000.0,117990.0,0.45389686]
[1753744405147,0.4037979,118000.0,117990.0,0.45389686]
[1753744406047,0.4037979,118000.0,117990.0,0.45489686]
[1753744406248,0.4037979,118000.0,117990.0,0.45589686]
[1753744407646,0.3418579,118000.0,117990.0,0.45589686]
[1753744408248,0.4037979,118000.0,117990.0,0.45589686]
[1753744408646,0.2827779,118000.0,117990.0,0.45589686]
[1753744409255,0.1980374,118000.0,117990.0,0.45589686]
[1753744409448,0.3190574,118000.0,117990.0,0.45589686]
[1753744414960,0.33812974,118000.0,117990.0,0.45589686]
[1753744421660,0.6225363,118000.0,117990.0,0.8541303]
[1753744422161,0.33812974,118000.0,117990.0,0.8541303]
[1753744423259,0.3190574,118000.0,117990.0,0.8541303]
[1753744423560,0.3190574,118000.0,117990.0,0.1714903]
[1753744423860,0.3190574,118000.0,117990.0,0.8541303]
[1753744424463,0.33809869,118000.0,117990.0,0.8541303]
[1753744424863,0.33809869,118000.0,117990.0,0.1714903]
[1753744425064,0.3190574,118000.0,117990.0,0.8541303]
[1753744426267,0.33809777,118000.0,117990.0,1.13853686]
[1753744427671,0.33809777,118000.0,117990.0,0.96904656]
[1753744427877,0.33809777,118000.0,117990.0,0.8541303]
[1753744429661,0.33809777,118000.0,117990.0,0.1714903]
[1753744429862,0.33809777,118000.0,117990.0,0.8541303]
[1753744431474,0.33809777,118000.0,117990.0,0.1714903]
[1753744431661,0.33809777,118000.0,117990.0,0.8541303]
[1753744434173,0.33809777,118000.0,117990.0,0.68464]
[1753744434467,0.33809777,118000.0,117990.0,0.002]
[1753744434669,0.62250433,118000.0,117990.0,0.68464]
[1753744435074,0.62250433,118000.0,117990.0,0.002]
[1753744435272,0.357762,117980.0,117970.0,0.1695168]
[1753744435475,0.73012856,117980.0,117970.0,0.8521568]
[1753744436171,0.445722,117980.0,117970.0,0.8521568]
[1753744436774,0.445722,117980.0,117970.0,0.8581568]
[1753744437273,0.73012856,117980.0,117970.0,0.68864]
[1753744440772,0.445722,117980.0,117970.0,0.8581585]
[1753744441378,0.4033431,117980.0,117970.0,0.8581585]
[1753744444069,0.4033431,117980.0,117970.0,0.68864]
[1753744444574,0.68774966,117980.0,117970.0,0.68864]
[1753744445379,0.4033431,117980.0,117970.0,0.8581585]
[1753744447575,0.2393948,117980.0,117970.0,1.14256506]
[1753744447774,0.1034803,118000.0,117970.0,1.01542306]
[1753744447973,0.2393712,117990.0,117980.0,0.2118778]
[1753744448176,0.0465153,117990.0,117980.0,0.53865936]
[1753744448576,0.0275,117990.0,117980.0,0.53865936]
[1753744448776,0.1969903,117990.0,117980.0,0.53865936]
[1753744449283,0.0275,117990.0,117980.0,0.53865936]
[1753744449482,0.0275,117990.0,117980.0,0.54065936]
[1753744450380,0.1969903,117990.0,117980.0,0.54065936]
[1753744451783,0.1969903,117990.0,117980.0,0.54165936]
[1753744457889,0.2340503,117990.0,117980.0,0.54165936]
[1753744458090,0.3170203,117990.0,117980.0,0.54165936]
[1753744461387,0.3170203,117990.0,117980.0,0.54994915]
[1753744461692,0.3170203,117990.0,117980.0,0.54165936]
[1753744463194,0.3170203,117990.0,117980.0,0.54990245]
[1753744463390,0.3170203,117990.0,117980.0,0.54165936]
[1753744463897,0.1969903,117990.0,117980.0,0.54165936]
[1753744465097,0.21601651,117990.0,117980.0,0.54165936]
[1753744465296,0.1969903,117990.0,117980.0,0.54165936]
[1753744465798,0.1969903,117990.0,117980.0,0.55030354]
[1753744470195,0.21593335,117990.0,117980.0,0.55030354]
[1753744470496,0.1969903,117990.0,117980.0,0.55030354]
[1753744473906,0.21593711,117990.0,117980.0,0.55030354]
[1753744474903,0.04644681,117990.0,117980.0,0.55030354]
[1753744475402,0.21593681,117990.0,117980.0,0.55030354]
[1753744475604,0.04644681,117990.0,117980.0,0.55030354]
[1753744476304,0.21593681,117990.0,117980.0,0.55030354]
[1753744478404,0.04644681,117990.0,117980.0,0.55030354]
[1753744479701,0.21593681,117990.0,117980.0,0.55030354]
[1753744479901,0.19699,117990.0,117980.0,0.55030354]
[1753744480101,0.0275,117990.0,117980.0,0.55030354]
[1753744480707,0.19699,117990.0,117980.0,0.55030354]
[1753744480906,0.19699,117990.0,117980.0,0.61126367]
[1753744481908,0.19699,117990.0,117980.0,0.55030354]
[1753744483313,0.31749,117990.0,117980.0,0.55030354]
[1753744484010,0.148,117990.0,117980.0,0.55030354]
[1753744484216,0.08725,117990.0,117980.0,0.55030354]
[1753744484506,0.06456,117990.0,117980.0,0.55030354]
[1753744484696,0.0275,117990.0,117980.0,0.61126367]
[1753744487008,0.29013,117990.0,117980.0,0.2148778]
[1753744487217,0.60239656,117990.0,117980.0,0.8547844]
[1753744488209,0.31799,117990.0,117980.0,0.8547844]
[1753744491318,0.31799,117990.0,117980.0,0.1725044]
[1753744491621,0.31799,117990.0,117980.0,0.8547444]
[1753744493419,0.31799,117990.0,117980.0,0.1725044]
[1753744493620,0.31799,117990.0,117980.0,0.8547444]
[1753744493920,0.31799,117990.0,117980.0,1.13915096]
[1753744504025,0.0275,117990.0,117980.0,1.13915096]
[1753744504224,0.19699,117990.0,117980.0,1.13915096]
[1753744504636,0.0275,117990.0,117980.0,1.13915096]
[1753744504933,0.19699,117990.0,117980.0,1.13915096]
[1753744506133,0.19699,117990.0,117980.0,0.1725044]
[1753744506134,0.31799,117990.0,117980.0,0.1725044]
[1753744506432,0.60239656,117990.0,117980.0,0.8546644]
[1753744506934,0.31799,117990.0,117980.0,0.8546644]
[1753744507835,0.31799,117990.0,117980.0,1.13907096]
[1753744513536,0.31799,117990.0,117980.0,0.8546644]
[1753744514241,0.31799,117990.0,117980.0,1.13907096]
[1753744516454,0.31799,117990.0,117980.0,1.20003109]
[1753744516949,0.29013,117990.0,117980.0,1.20003109]
[1753744517450,0.31833,117990.0,117980.0,1.13907096]
[1753744517950,0.31833,117990.0,117980.0,1.20003109]
[1753744522763,0.31833,117990.0,117980.0,1.13907096]
[1753744523560,0.29013,117990.0,117980.0,1.13907096]
[1753744524466,0.31833,117990.0,117980.0,1.13907096]
[1753744529464,0.31833,117990.0,117980.0,0.8546644]
[1753744529665,0.31833,117990.0,117980.0,1.13907096]
[1753744532771,0.19699,117990.0,117980.0,1.13907096]
[1753744532966,0.19699,117990.0,117980.0,1.20003109]
[1753744533165,0.19699,117990.0,117980.0,1.13907096]
[1753744533368,0.28816,117990.0,117980.0,1.13907096]
[1753744533565,0.31636,117990.0,117980.0,1.13907096]
[1753744534478,0.25646,117990.0,117980.0,1.13907096]
[1753744534674,0.1955717,118000.0,117990.0,0.16949]
[1753744534873,0.1955717,118000.0,117990.0,0.45389656]
[1753744534874,0.04477271,118000.0,117990.0,0.45389656]
[1753744535174,0.21424831,118000.0,117990.0,0.45389656]
[1753744536978,0.21424841,118000.0,117990.0,0.45489656]
[1753744537373,0.24594841,118000.0,117990.0,0.45489656]
[1753744537573,0.31033841,118000.0,117990.0,0.45489656]
[1753744537876,0.33361841,118000.0,117990.0,0.45489656]
[1753744538475,0.33361841,118000.0,117990.0,0.45589656]
[1753744539479,0.30541841,118000.0,117990.0,0.45589656]
[1753744540181,0.30541841,118000.0,117990.0,0.45489656]
[1753744540479,0.27371841,118000.0,117990.0,0.45689656]
[1753744541275,0.2550357,118000.0,117990.0,0.45689656]
[1753744541472,0.2867357,118000.0,117990.0,0.45689656]
[1753744542370,0.3149357,118000.0,117990.0,0.45689656]
[1753744544280,0.3149357,118000.0,117990.0,0.17249]
[1753744544475,0.3149357,118000.0,117990.0,0.45689656]
[1753744551980,0.04476433,118000.0,117990.0,0.45689656]
[1753744552182,0.1955659,118000.0,117990.0,0.45689656]
[1753744552385,0.02609,118000.0,117990.0,0.45689656]
[1753744554794,0.1963324,118010.0,118000.0,0.1694759]
[1753744554993,0.21500559,118010.0,118000.0,1.15258672]
[1753744555194,0.21500559,118010.0,118000.0,1.43699328]
[1753744555690,0.21500559,118010.0,118000.0,1.43693328]
[1753744556093,0.21500559,118010.0,118000.0,1.44523988]
[1753744556587,0.04554319,118010.0,118000.0,1.44523988]
[1753744556786,0.21500469,118010.0,118000.0,1.44523988]
[1753744556986,0.1963315,118010.0,118000.0,1.44723988]
[1753744558294,0.1963315,118010.0,118000.0,1.16083332]
[1753744558495,0.1963315,118010.0,118000.0,1.16383332]
[1753744559997,0.2281615,118010.0,118000.0,1.16383332]
[1753744560193,0.3128815,118010.0,118000.0,1.16383332]
[1753744563508,0.11751,118010.0,118000.0,1.16383332]
[1753744563708,0.02687,118010.0,118000.0,1.16383332]
[1753744564003,0.1963315,118010.0,118000.0,1.16383332]
[1753744564411,0.1963315,118010.0,118000.0,1.44823988]
[1753744564609,0.02687,118010.0,118000.0,1.44823988]
[1753744566021,0.02687,118020.0,118010.0,0.2541866]
[1753744566310,0.04531703,118020.0,118010.0,0.58095736]
[1753744566504,0.04531703,118020.0,118010.0,0.62332156]
[1753744566700,0.01844703,118020.0,118010.0,0.62332156]
[1753744567203,0.02687,118030.0,118020.0,0.1694472]
[1753744567403,0.02687,118030.0,118020.0,1.13545376]
[1753744568206,0.02687,118030.0,118020.0,1.41986032]
[1753744568411,0.03183,118040.0,118030.0,0.76656602]
[1753744568608,0.3283201,118050.0,118040.0,0.1977385]
[1753744568809,0.3283201,118050.0,118040.0,0.8818585]
[1753744569011,0.3283201,118050.0,118040.0,1.16626506]
[1753744570404,0.3551901,118050.0,118040.0,1.16626506]
[1753744570606,0.42397413,118050.0,118040.0,1.16626506]
[1753744570806,0.42397413,118050.0,118040.0,1.15525506]
[1753744572113,0.42497413,118050.0,118040.0,1.15525506]
[1753744572408,0.45535449,118050.0,118020.0,0.32676526]
[1753744572613,0.3128526,118030.0,118020.0,0.1694326]
[1753744572812,0.3128669,118020.0,118010.0,0.01712111]
[1753744573113,0.2582013,118010.0,118000.0,0.27114266]
[1753744573415,0.3139913,118010.0,118000.0,0.95702266]
[1753744573716,0.3139913,118010.0,118000.0,0.97433266]
[1753744573911,0.3139913,118010.0,118000.0,1.25873922]
[1753744574712,0.3139913,118010.0,118000.0,1.26976922]
[1753744575214,0.3139913,118010.0,118000.0,1.27176922]
[1753744575816,0.3139913,118010.0,118000.0,1.27076922]
[1753744576116,0.3139913,118010.0,118000.0,1.26173922]
[1753744577417,0.3139913,118010.0,118000.0,1.27276922]
[1753744581222,0.3139913,118010.0,118000.0,1.26173922]
[1753744581624,0.3139913,118010.0,118000.0,1.27276922]
[1753744586924,0.2135413,118010.0,118000.0,1.27276922]
[1753744587124,0.2718013,118010.0,118000.0,1.27276922]
[1753744587325,0.2948213,118010.0,118000.0,1.27276922]
[1753744587623,0.3126013,118010.0,118000.0,1.27276922]
[1753744588731,0.2543413,118010.0,118000.0,1.27276922]
[1753744588929,0.2543413,118010.0,118000.0,1.55717578]
[1753744589325,0.02687,118010.0,118000.0,1.55717578]
[1753744589540,0.3714345,118030.0,118020.0,0.1981369]
[1753744589831,0.21329525,118030.0,118020.0,1.16738346]
[1753744590133,0.04385215,118030.0,118020.0,1.16750346]
[1753744590528,0.01736215,118030.0,118020.0,1.16750346]
[1753744590727,0.21328475,118030.0,118020.0,1.16750346]
[1753744590934,0.32955475,118030.0,118020.0,1.16750346]
[1753744591136,0.3121926,118030.0,118020.0,1.16750346]
[1753744592233,0.3121926,118030.0,118020.0,1.15647346]
[1753744592733,0.3121926,118030.0,118020.0,1.16750346]
[1753744593144,0.1959226,118030.0,118020.0,1.16750346]
[1753744593432,0.2019826,118040.0,118030.0,0.1804629]
[1753744593632,0.41424881,118040.0,118030.0,0.48252946]
[1753744594035,0.41424881,118040.0,118030.0,0.47149946]
[1753744595931,0.39703881,118040.0,118030.0,0.47149946]
[1753744596132,0.18677621,118040.0,118030.0,0.48252946]
[1753744596432,0.21326621,118040.0,118030.0,0.48252946]
[1753744597135,0.28873621,118040.0,118030.0,0.48252946]
[1753744597435,0.31175621,118040.0,118030.0,0.48252946]
[1753744597739,0.32953621,118040.0,118030.0,0.48252946]
[1753744599632,0.16011771,118040.0,118030.0,0.48252946]
[1753744599833,0.34939773,118050.0,118040.0,0.1981085]
[1753744600035,0.36688269,118050.0,118040.0,1.16963506]
[1753744600229,0.39999889,118050.0,118040.0,1.16963506]
[1753744600428,0.42301889,118050.0,118040.0,1.16963506]
[1753744600629,0.13550403,118050.0,118040.0,1.45404162]
[1753744600829,0.30490813,118050.0,118040.0,1.45404162]
[1753744601029,0.30590813,118050.0,118040.0,1.45404162]
[1753744601225,0.33867813,118050.0,118040.0,1.45404162]
[1753744601432,0.36416813,118050.0,118040.0,1.45404162]
[1753744601632,0.001,118050.0,118040.0,1.46247249]
[1753744601934,0.1968941,118050.0,118040.0,1.46247249]
[1753744603637,0.1968941,118050.0,118040.0,2.63387249]
[1753744605836,0.02749,118050.0,118040.0,2.63387249]
[1753744606137,0.1968942,118050.0,118040.0,2.63387249]
[1753744606528,0.3133242,118050.0,118040.0,2.34103506]
[1753744607541,0.3133242,118050.0,118040.0,2.33000506]
[1753744608037,0.3133242,118050.0,118040.0,2.31190506]
[1753744608239,0.59773076,118050.0,118040.0,1.85808]
[1753744608435,0.59773076,118050.0,118040.0,1.1714]
[1753744608642,0.60611422,118050.0,118040.0,1.1714]
[1753744608840,0.60611422,118050.0,118040.0,1.85816]
[1753744609239,0.32170766,118050.0,118040.0,1.85816]
[1753744609633,0.32170766,118050.0,118040.0,2.0275785]
[1753744609838,0.32170766,118050.0,118040.0,2.31198506]
[1753744610740,0.3133242,118050.0,118040.0,2.31198506]
[1753744611335,0.32186914,118050.0,118040.0,2.31198506]
[1753744611530,0.3133242,118050.0,118040.0,2.31198506]
[1753744615743,0.3216061,118050.0,118040.0,2.31198506]
[1753744616543,0.3216061,118050.0,118040.0,1.14058506]
[1753744618144,0.3216061,118050.0,118040.0,0.98729656]
[1753744618946,0.3216061,118050.0,118040.0,1.15671476]
[1753744620549,0.3216061,118050.0,118040.0,0.98729656]
[1753744620744,0.3216061,118050.0,118040.0,1.15671476]
[1753744621147,0.3133242,118050.0,118040.0,1.16679476]
[1753744621448,0.27175393,118050.0,118040.0,1.16679476]
[1753744621650,0.18766393,118050.0,118040.0,1.16679476]
[1753744621853,0.21262393,118050.0,118040.0,1.16679476]
[1753744626349,0.18766393,118050.0,118040.0,1.16679476]
[1753744626549,0.18766363,118050.0,118040.0,1.45120132]
[1753744626748,0.18766363,118050.0,118040.0,1.49680571]
[1753744626951,0.01825973,118050.0,118040.0,1.49680571]
[1753744627151,0.18766363,118050.0,118040.0,1.49680571]
[1753744627350,0.01827274,118050.0,118040.0,1.49680571]
[1753744627553,0.18767664,118050.0,118040.0,1.49680571]
[1753744627853,0.1704039,118050.0,118040.0,1.49680571]
[1753744628552,0.18768067,118050.0,118040.0,1.49680571]
[1753744629054,0.21264067,118050.0,118040.0,1.49680571]
[1753744629256,0.18768067,118050.0,118040.0,0.21502259]
[1753744629456,0.32875067,118050.0,118040.0,0.74609439]
[1753744629755,0.32875067,118050.0,118040.0,0.91551259]
[1753744630847,0.32875067,118050.0,118040.0,0.8699082]
[1753744631255,0.32875067,118050.0,118040.0,1.15431476]
[1753744632154,0.32875067,118050.0,118040.0,1.16439476]
[1753744634259,0.32875067,118050.0,118040.0,0.98489656]
[1753744634556,0.32875067,118050.0,118040.0,0.8699082]
[1753744634958,0.32875067,118050.0,118040.0,1.15431476]
[1753744635360,0.32875067,118050.0,118040.0,1.16346476]
[1753744635560,0.25255067,118050.0,118040.0,1.16346476]
[1753744636061,0.18768067,118050.0,118040.0,1.44787132]
[1753744636565,0.01827677,118050.0,118040.0,1.44787132]
[1753744638165,0.18768057,118050.0,118040.0,1.44787132]
[1753744639664,0.1704038,118050.0,118040.0,1.44787132]
[1753744640255,0.01843038,118050.0,118040.0,1.44787132]
[1753744640461,0.00928038,118050.0,118040.0,1.46479302]
[1753744640664,0.1693751,118070.0,118060.0,0.1693895]
[1753744640864,0.2499351,118070.0,118060.0,1.13931606]
[1753744641064,0.3089751,118070.0,118060.0,1.13931606]
[1753744642166,0.3109751,118070.0,118060.0,1.13931606]
[1753744643167,0.2845251,118070.0,118060.0,1.13931606]
[1753744643668,0.2519351,118070.0,118060.0,1.13931606]
[1753744643871,0.1964251,118070.0,118060.0,1.13931606]
[1753744644478,0.26384939,118070.0,118060.0,1.13931606]
[1753744646267,0.37839939,118070.0,118060.0,1.13931606]
[1753744646875,0.37839939,118070.0,118060.0,1.18503429]
[1753744647390,0.26384939,118070.0,118060.0,1.18503429]
[1753744647788,0.26384939,118070.0,118060.0,1.18419429]
[1753744648082,0.37839939,118070.0,118060.0,1.18419429]
[1753744648281,0.37839939,118070.0,118060.0,1.13847606]
[1753744651188,0.28031939,118070.0,118060.0,1.13847606]
[1753744652687,0.29705934,118070.0,118060.0,1.13847606]
[1753744653891,0.32964934,118070.0,118060.0,1.13847606]
[1753744654194,0.32964934,118070.0,118060.0,1.14677134]
[1753744654587,0.29705934,118070.0,118060.0,1.14677134]
[1753744655091,0.28058934,118070.0,118060.0,1.14677134]
[1753744656988,0.01873995,118070.0,118060.0,1.14677134]
[1753744657487,0.002,118070.0,118060.0,1.19248957]
[1753744659686,0.1713754,118070.0,118060.0,1.19248957]
[1753744660088,0.1964254,118070.0,118060.0,1.19248957]
[1753744661692,0.02705,118070.0,118060.0,1.19248957]
[1753744662193,0.1964255,118070.0,118060.0,1.19248957]
[1753744662493,0.1964255,118070.0,118060.0,1.14677134]
[1753744662692,0.1964255,118070.0,118060.0,1.19242888]
[1753744662895,0.1964255,118070.0,118060.0,1.19242725]
[1753744665797,0.1964255,118070.0,118060.0,1.14677134]
[1753744666694,0.1964255,118070.0,118060.0,1.20773147]
[1753744666896,0.1964255,118070.0,118060.0,1.14677134]
[1753744668897,0.1964255,118070.0,118060.0,1.20773147]
[1753744670205,0.02705,118070.0,118060.0,1.20773147]
[1753744670493,0.1713754,118070.0,118060.0,1.20773147]
[1753744670696,0.1976954,118070.0,118060.0,1.20773147]
[1753744671197,0.3091954,118070.0,118060.0,0.91502963]
[1753744671392,0.3091954,118070.0,118060.0,1.13847606]
[1753744672598,0.3091954,118070.0,118050.0,2.05056553]
[1753744672599,0.3072098,118060.0,118050.0,2.05056553]
[1753744672897,0.3072098,118060.0,118050.0,2.47294553]
[1753744673102,0.3072098,118060.0,118050.0,2.4121854]
[1753744673999,0.3072098,118060.0,118050.0,2.47304807]
[1753744674201,0.3072098,118060.0,118050.0,2.4730513]
[1753744674401,0.3082098,118060.0,118050.0,2.4730513]
[1753744676405,0.3082098,118060.0,118050.0,2.4729913]
[1753744676594,0.3082098,118060.0,118050.0,1.7875113]
[1753744676796,0.3082098,118060.0,118050.0,2.2190022]
[1753744677098,0.3082098,118060.0,118050.0,1.93459564]
[1753744677796,0.3082098,118060.0,118050.0,1.24907564]
[1753744678007,0.3082098,118060.0,118050.0,1.93495564]
[1753744678396,0.3082098,118060.0,118050.0,2.10435954]
[1753744678602,0.3082098,118060.0,118050.0,2.3887661]
[1753744678902,0.3082098,118060.0,118050.0,2.10435954]
[1753744680009,0.31674807,118060.0,118050.0,2.10435954]
[1753744680501,0.3082098,118060.0,118050.0,2.3887661]
[1753744681203,0.3082098,118060.0,118050.0,2.3279002]
[1753744687006,0.3082098,118060.0,118050.0,2.1584963]
[1753744687205,0.3082098,118060.0,118050.0,2.3279001]
[1753744687710,0.3082098,118060.0,118050.0,2.31081036]
[1753744688510,0.3082098,118060.0,118050.0,1.13969036]
[1753744688900,0.3082098,118060.0,118050.0,0.97028656]
[1753744689099,0.3082098,118060.0,118050.0,1.13969026]
[1753744692003,0.2071437,118050.0,118040.0,0.0777876]